{"text_format":"1","workbook":"xlsx","n_sheets":25,"sheets":["JOUEURS","EMPLOYES","Recap","Recap mensuel","ANDRY","TOKY","LIVA","RIJA BE","NICO +","MIRANA ","ANDO ","KARENA","DIDINE","ZOEB","KOSHALL","MAITRE ZO","ZO CAPITAINE","DOBA","WESLEY","NATHA","FRERE LUKILL","KIM","KATANGA","MARIA","LISTES"],"not_rendered":{"charts":1,"images":0,"macros":1,"external_links":0,"defined_names":3,"comments":0,"pivot_tables":0},"unopened":[],"bounds":{"document_bytes":16777216,"sheet_cells":100000,"rows_first":2000,"rows_last":500,"rows_between":2000,"halvings":0,"cell_chars":16384,"cell_head_chars":4096},"cells_cut":0,"cells_raw":0,"read":"whole","date_system":"1900"}

{"sheet":"JOUEURS","index":0,"n_rows":44,"n_cols":4,"rows_kept":44,"cut":false,"hidden":false,"merged":[[0,0,0,2]]}
["LISTE DES JOUEURS"]
["NOM","SITUATION GLOBALE",null,"TELEPHONE"]
["ANDRY",null,null,343642100]
["TOKY",null,null,340612989]
[]
["LIVA",null,null,345965395]
["RIJA BE",null,null,345433293]
["NICO +"]
[]
["MIRANA ",null,null,349887335]
["ANDO ",null,null,341061393]
["KARENA"]
[]
["DIDINE"]
["ZOEB"]
["KOSHAL"]
[]
["MAITRE ZO",null,null,347291696]
["ZO CAPITAINE",null,null,341335371]
["DOBA"]
[]
["WESLEY",null,null,349961841]
["NATHA",null,null,342473128]
["FRERE LUKILL"]
[]
["KIM",null,null,"341752657/0324897773"]
["KATANGA"]
[]
["MARIA"]
["YOLLY"]
["MIARY"]
["BALIVA"]
["NARISOA"]
["MR STEPHAN"]
["STEPHAN GENDARME"]
["RASTA"]
["BOB"]
["BIOS"]
["MICKAEL"]
["ROMAIN"]
["DADAY"]
["RINALDI"]
["SLEM CROUPS"]
["RANTO CROUPS"]

{"sheet":"EMPLOYES","index":1,"n_rows":20,"n_cols":4,"rows_kept":20,"cut":false,"hidden":false,"merged":[]}
[null,"EMPLOYES "]
[]
["NANTENAINA Ivoarisoa Julie","Secrétaire",2016,"0349956617"]
["ZAFIMARY Edson","Agent Responsable","2017-05-01","0342585563"]
["BOTOVELO Nicolas","Gardien",2016,"0322170469"]
["RANDRIAMARO Célin Zakanirina David","Mécanicien","2019-04-01","0345944138"]
[]
["RANDRIANINDRINA Maminiaina Sylvain","Aide chauffeur",2016,"0342473128"]
["RANDRIANANDRASANA Tommy Ronaldo","Aide chauffeur","05fevrier2018","0341061393"]
["RAZAFINDRABE Jean Richard","Aide chauffeur","2019-04-20","0340612989"]
["RANARY SON IANGELO","Aide chauffeur","2018-06-01","0341335371"]
["RANDRIANARISON Théophile","Aide chauffeur","2019-05-20","0345433293"]
[]
[]
["RANDRIANARIVAHOAKA Jaona Nicolas","Chauffeur",2016,"0349887335"]
["RAZAKAMANANA Victor","Chauffeur","2017-05-11","0343642100"]
["RAZAFINDRAKOTO Augustin","Chauffeur",2016,"0349961841"]
["LEZO Ledavidasoa Richard Honoré","Chauffeur","2017-07-06","0345965395"]
["Miandrisoa Rovamanga Jean Claude","Chauffeur","2017-01-23","0347291696"]
["FILIANTSOA","Chauffeur","2019-10-14","0341752657"]

{"sheet":"Recap","index":2,"n_rows":5,"n_cols":7,"rows_kept":5,"cut":false,"hidden":false,"merged":[]}
[null,null,"Entrer une date",null,"Aujourd'hui nous sommes le",null,{"$f":"TODAY()","v":"2022-01-30"}]
[null,"Date :","2019-11-05"]
[null,null,null,null,"NBRE DE CAVE DE TOUT LES JOUEURS:"]
[null,"JOUEUR","NBRE DE CAVE","BILAN"]
[null,"0821AH","TRACTEUR","ewhjklfhweihkfwk","DAVID MECA",null,90000]

{"sheet":"Recap mensuel","index":3,"n_rows":6,"n_cols":30,"rows_kept":6,"cut":false,"hidden":false,"merged":[]}
[null,"Selectionner un mois",null,"et une année",null,"Aujourd'hui nous sommes le",{"$f":"TODAY()","v":"2022-01-30"}]
[null,null,"Novembre",2019,null,null,null,null,null,"Véhicule","ANDRY","TOKY","LIVA","RIJA BE","NICO +","MIRANA","ANDO","KARENA","DIDINE","ZOEB","KOSHALL","MAITRE ZO","ZO CAPITAINE","DOBA","WESLEY","NATHA","FRERE LUKILL","KIM","KATANGA","MARIA"]
[null,null,null,null,null,null,"TOTAL",{"$f":"SUBTOTAL(9,H5:H2851)","v":190000},null,{"$f":"\"Coût \"&C2&\" \" &D2","v":"Coût Novembre 2019"},{"$f":"SUMIF($C$5:$C$2000,K$2,$H$5:$H$2000)","v":0},{"$f":"SUMIF($C$5:$C$2000,L$2,$H$5:$H$2000)","v":0},0,0,0,0,0,0,0,0,0,0,0,0,0,0,0,0,0,0]
[null,"Date","Véhicule","Type","Réparation/Appro","Prestataire","STATUT","COUT"]
[null,"2019-11-02","8158AG","REMORQUE","REPARTITEUR","DISCOI",0.9,100000]
[null,"2019-11-05","0821AH","TRACTEUR","ewhjklfhweihkfwk","DAVID MECA",null,90000]

{"sheet":"ANDRY","index":4,"n_rows":8,"n_cols":7,"rows_kept":8,"cut":false,"hidden":false,"merged":[]}
["Pour entrer date du jour : Ctrl + ;",null,{"$f":"MID(CELL(\"nomfichier\",A1),FIND(\"]\",CELL(\"nomfichier\",A1))+1,LEN(CELL(\"nomfichier\",A1))-FIND(\"]\",CELL(\"nomfichier\",A1)))","v":"ANDRY"}]
[]
[]
[]
[]
[null,null,null,null,null,"TOTAL ",{"$f":"SUM(G8:G2006)","v":0}]
["DATE","PRIX DU CAVE","NBR DE CAVE","PRIX TOTAL DES CAVES","CASHING","BILAN"]
["2019-11-05","10  OU 20 OU 55 OU 110 OU 220","DAVID MECA"]

{"sheet":"TOKY","index":5,"n_rows":7,"n_cols":7,"rows_kept":7,"cut":false,"hidden":false,"merged":[]}
["Pour entrer date du jour : Ctrl + ;",null,{"$f":"MID(CELL(\"nomfichier\",A1),FIND(\"]\",CELL(\"nomfichier\",A1))+1,LEN(CELL(\"nomfichier\",A1))-FIND(\"]\",CELL(\"nomfichier\",A1)))","v":"TOKY"},null,null,"TYPE","TRACTEUR"]
[]
["CHAUFFEUR ","VICTOR","AIDE CHAUFFEUR",null,null,null,"RICHARD"]
["VISITE TECHNIQUE",null,"VIDANGE"]
["ASSURANCE",null,"PROCHAINE VIDANGE"]
[null,null,null,null,null,"TOTAL ",{"$f":"SUM(G8:G2008)","v":0}]
["DATE","REPARATION A EFFECTUER/ APPRO","PRESTATAIRE","KM A L'ENTRETIENT","PROCHAIN ENTRETIENT","STATUT","COUT "]

{"sheet":"LIVA","index":6,"n_rows":7,"n_cols":7,"rows_kept":7,"cut":false,"hidden":false,"merged":[]}
["Pour entrer date du jour : Ctrl + ;",null,{"$f":"MID(CELL(\"nomfichier\",A1),FIND(\"]\",CELL(\"nomfichier\",A1))+1,LEN(CELL(\"nomfichier\",A1))-FIND(\"]\",CELL(\"nomfichier\",A1)))","v":"LIVA"},null,null,"TYPE","TRACTEUR"]
[]
["CHAUFFEUR ","RICHARD(DADA)","AIDE CHAUFFEUR",null,null,null,"THEOPHILE (THEO)"]
["VISITE TECHNIQUE",null,"VIDANGE"]
["ASSURANCE",null,"PROCHAINE VIDANGE"]
[null,null,null,null,null,"TOTAL ",{"$f":"SUM(G8:G2008)","v":0}]
["DATE","REPARATION A EFFECTUER/ APPRO","PRESTATAIRE","KM A L'ENTRETIENT","PROCHAIN ENTRETIENT","STATUT","COUT"]

{"sheet":"RIJA BE","index":7,"n_rows":8,"n_cols":7,"rows_kept":8,"cut":false,"hidden":false,"merged":[]}
["Pour entrer date du jour : Ctrl + ;",null,{"$f":"MID(CELL(\"nomfichier\",A1),FIND(\"]\",CELL(\"nomfichier\",A1))+1,LEN(CELL(\"nomfichier\",A1))-FIND(\"]\",CELL(\"nomfichier\",A1)))","v":"RIJA BE"},null,null,"TYPE","REMORQUE"]
[]
["CHAUFFEUR ","RICHARD(DADA)","AIDE CHAUFFEUR",null,null,null,"THEOPHILE (THEO)"]
["VISITE TECHNIQUE",null,"VIDANGE"]
["ASSURANCE",null,"PROCHAINE VIDANGE"]
[null,null,null,null,null,"TOTAL ",{"$f":"SUM(G8:G2008)","v":100000}]
["DATE","REPARATION A EFFECTUER/ APPRO","PRESTATAIRE","KM A L'ENTRETIENT","PROCHAIN ENTRETIENT","STATUT","COUT"]
["2019-11-02","REPARTITEUR","DISCOI",null,null,0.9,100000]

{"sheet":"NICO +","index":8,"n_rows":7,"n_cols":7,"rows_kept":7,"cut":false,"hidden":false,"merged":[]}
["Pour entrer date du jour : Ctrl + ;",null,{"$f":"MID(CELL(\"nomfichier\",A1),FIND(\"]\",CELL(\"nomfichier\",A1))+1,LEN(CELL(\"nomfichier\",A1))-FIND(\"]\",CELL(\"nomfichier\",A1)))","v":"NICO +"},null,null,"TYPE","REMORQUE"]
[]
["CHAUFFEUR ","RICHARD(DADA)","AIDE CHAUFFEUR",null,null,null,"THEOPHILE (THEO)"]
["VISITE TECHNIQUE",null,"VIDANGE"]
["ASSURANCE",null,"PROCHAINE VIDANGE"]
[null,null,null,null,null,"TOTAL ",{"$f":"SUM(G8:G2008)","v":0}]
["DATE","REPARATION A EFFECTUER/ APPRO","PRESTATAIRE","KM A L'ENTRETIENT","PROCHAIN ENTRETIENT","STATUT","COUT"]

{"sheet":"MIRANA ","index":9,"n_rows":7,"n_cols":7,"rows_kept":7,"cut":false,"hidden":false,"merged":[]}
["Pour entrer date du jour : Ctrl + ;",null,{"$f":"MID(CELL(\"nomfichier\",A1),FIND(\"]\",CELL(\"nomfichier\",A1))+1,LEN(CELL(\"nomfichier\",A1))-FIND(\"]\",CELL(\"nomfichier\",A1)))","v":"MIRANA "},null,null,"TYPE","TRACTEUR"]
[]
["CHAUFFEUR ","JAONA (JOHNY)","AIDE CHAUFFEUR",null,null,null,"TOMMY"]
["VISITE TECHNIQUE",null,"VIDANGE"]
["ASSURANCE",null,"PROCHAINE VIDANGE"]
[null,null,null,null,null,"TOTAL ",{"$f":"SUM(G8:G2008)","v":0}]
["DATE","REPARATION A EFFECTUER/ APPRO","PRESTATAIRE","KM A L'ENTRETIENT","PROCHAIN ENTRETIENT","STATUT","COUT"]

{"sheet":"ANDO ","index":10,"n_rows":7,"n_cols":7,"rows_kept":7,"cut":false,"hidden":false,"merged":[]}
["Pour entrer date du jour : Ctrl + ;",null,{"$f":"MID(CELL(\"nomfichier\",A1),FIND(\"]\",CELL(\"nomfichier\",A1))+1,LEN(CELL(\"nomfichier\",A1))-FIND(\"]\",CELL(\"nomfichier\",A1)))","v":"ANDO "},null,null,"TYPE","REMORQUE"]
[]
["CHAUFFEUR ","JAONA (JOHNY)","AIDE CHAUFFEUR",null,null,null,"TOMMY"]
["VISITE TECHNIQUE",null,"VIDANGE"]
["ASSURANCE",null,"PROCHAINE VIDANGE"]
[null,null,null,null,null,"TOTAL ",{"$f":"SUM(G8:G2008)","v":0}]
["DATE","REPARATION A EFFECTUER/ APPRO","PRESTATAIRE","KM A L'ENTRETIENT","PROCHAIN ENTRETIENT","STATUT","COUT"]

{"sheet":"KARENA","index":11,"n_rows":7,"n_cols":7,"rows_kept":7,"cut":false,"hidden":false,"merged":[]}
["Pour entrer date du jour : Ctrl + ;",null,{"$f":"MID(CELL(\"nomfichier\",A1),FIND(\"]\",CELL(\"nomfichier\",A1))+1,LEN(CELL(\"nomfichier\",A1))-FIND(\"]\",CELL(\"nomfichier\",A1)))","v":"KARENA"},null,null,"TYPE","TRACTEUR"]
[]
["CHAUFFEUR ","JAONA (JOHNY)","AIDE CHAUFFEUR",null,null,null,"TOMMY"]
["VISITE TECHNIQUE",null,"VIDANGE"]
["ASSURANCE",null,"PROCHAINE VIDANGE"]
[null,null,null,null,null,"TOTAL ",{"$f":"SUM(G8:G2008)","v":0}]
["DATE","REPARATION A EFFECTUER/ APPRO","PRESTATAIRE","KM A L'ENTRETIENT","PROCHAIN ENTRETIENT","STATUT","COUT"]

{"sheet":"DIDINE","index":12,"n_rows":7,"n_cols":7,"rows_kept":7,"cut":false,"hidden":false,"merged":[]}
["Pour entrer date du jour : Ctrl + ;",null,{"$f":"MID(CELL(\"nomfichier\",A1),FIND(\"]\",CELL(\"nomfichier\",A1))+1,LEN(CELL(\"nomfichier\",A1))-FIND(\"]\",CELL(\"nomfichier\",A1)))","v":"DIDINE"},null,null,"TYPE","TRACTEUR"]
[]
["CHAUFFEUR ",null,"AIDE CHAUFFEUR"]
["VISITE TECHNIQUE",null,"VIDANGE"]
["ASSURANCE",null,"PROCHAINE VIDANGE"]
[null,null,null,null,null,"TOTAL ",{"$f":"SUM(G8:G2008)","v":0}]
["DATE","REPARATION A EFFECTUER/ APPRO","PRESTATAIRE","KM A L'ENTRETIENT","PROCHAIN ENTRETIENT","STATUT","COUT"]

{"sheet":"ZOEB","index":13,"n_rows":7,"n_cols":7,"rows_kept":7,"cut":false,"hidden":false,"merged":[]}
["Pour entrer date du jour : Ctrl + ;",null,{"$f":"MID(CELL(\"nomfichier\",A1),FIND(\"]\",CELL(\"nomfichier\",A1))+1,LEN(CELL(\"nomfichier\",A1))-FIND(\"]\",CELL(\"nomfichier\",A1)))","v":"ZOEB"},null,null,"TYPE","REMORQUE"]
[]
["CHAUFFEUR ",null,"AIDE CHAUFFEUR"]
["VISITE TECHNIQUE",null,"VIDANGE"]
["ASSURANCE",null,"PROCHAINE VIDANGE"]
[null,null,null,null,null,"TOTAL ",{"$f":"SUM(G8:G2008)","v":0}]
["DATE","REPARATION A EFFECTUER/ APPRO","PRESTATAIRE","KM A L'ENTRETIENT","PROCHAIN ENTRETIENT","STATUT","COUT"]

{"sheet":"KOSHALL","index":14,"n_rows":7,"n_cols":7,"rows_kept":7,"cut":false,"hidden":false,"merged":[]}
["Pour entrer date du jour : Ctrl + ;",null,{"$f":"MID(CELL(\"nomfichier\",A1),FIND(\"]\",CELL(\"nomfichier\",A1))+1,LEN(CELL(\"nomfichier\",A1))-FIND(\"]\",CELL(\"nomfichier\",A1)))","v":"KOSHALL"},null,null,"TYPE","REMORQUE"]
[]
["CHAUFFEUR ",null,"AIDE CHAUFFEUR"]
["VISITE TECHNIQUE",null,"VIDANGE"]
["ASSURANCE",null,"PROCHAINE VIDANGE"]
[null,null,null,null,null,"TOTAL ",{"$f":"SUM(G8:G2008)","v":0}]
["DATE","REPARATION A EFFECTUER/ APPRO","PRESTATAIRE","KM A L'ENTRETIENT","PROCHAIN ENTRETIENT","STATUT","COUT"]

{"sheet":"MAITRE ZO","index":15,"n_rows":7,"n_cols":7,"rows_kept":7,"cut":false,"hidden":false,"merged":[]}
["Pour entrer date du jour : Ctrl + ;",null,{"$f":"MID(CELL(\"nomfichier\",A1),FIND(\"]\",CELL(\"nomfichier\",A1))+1,LEN(CELL(\"nomfichier\",A1))-FIND(\"]\",CELL(\"nomfichier\",A1)))","v":"MAITRE ZO"},null,null,"TYPE","TRACTEUR"]
[]
["CHAUFFEUR ","MIANDRY (RABETSY)","AIDE CHAUFFEUR",null,null,null,"ANGELO"]
["VISITE TECHNIQUE",null,"VIDANGE"]
["ASSURANCE",null,"PROCHAINE VIDANGE"]
[null,null,null,null,null,"TOTAL ",{"$f":"SUM(G8:G2008)","v":0}]
["DATE","REPARATION A EFFECTUER/ APPRO","PRESTATAIRE","KM A L'ENTRETIENT","PROCHAIN ENTRETIENT","STATUT","COUT"]

{"sheet":"ZO CAPITAINE","index":16,"n_rows":7,"n_cols":7,"rows_kept":7,"cut":false,"hidden":false,"merged":[]}
["Pour entrer date du jour : Ctrl + ;",null,{"$f":"MID(CELL(\"nomfichier\",A1),FIND(\"]\",CELL(\"nomfichier\",A1))+1,LEN(CELL(\"nomfichier\",A1))-FIND(\"]\",CELL(\"nomfichier\",A1)))","v":"ZO CAPITAINE"},null,null,"TYPE","REMORQUE"]
[]
["CHAUFFEUR ","MIANDRY (RABETSY)","AIDE CHAUFFEUR",null,null,null,"ANGELO"]
["VISITE TECHNIQUE",null,"VIDANGE"]
["ASSURANCE",null,"PROCHAINE VIDANGE"]
[null,null,null,null,null,"TOTAL ",{"$f":"SUM(G8:G2008)","v":0}]
["DATE","REPARATION A EFFECTUER/ APPRO","PRESTATAIRE","KM A L'ENTRETIENT","PROCHAIN ENTRETIENT","STATUT","COUT"]

{"sheet":"DOBA","index":17,"n_rows":7,"n_cols":7,"rows_kept":7,"cut":false,"hidden":false,"merged":[]}
["Pour entrer date du jour : Ctrl + ;",null,{"$f":"MID(CELL(\"nomfichier\",A1),FIND(\"]\",CELL(\"nomfichier\",A1))+1,LEN(CELL(\"nomfichier\",A1))-FIND(\"]\",CELL(\"nomfichier\",A1)))","v":"DOBA"},null,null,"TYPE","REMORQUE"]
[]
["CHAUFFEUR ","MIANDRY (RABETSY)","AIDE CHAUFFEUR",null,null,null,"ANGELO"]
["VISITE TECHNIQUE",null,"VIDANGE"]
["ASSURANCE",null,"PROCHAINE VIDANGE"]
[null,null,null,null,null,"TOTAL ",{"$f":"SUM(G8:G2008)","v":0}]
["DATE","REPARATION A EFFECTUER/ APPRO","PRESTATAIRE","KM A L'ENTRETIENT","PROCHAIN ENTRETIENT","STATUT","COUT"]

{"sheet":"WESLEY","index":18,"n_rows":7,"n_cols":7,"rows_kept":7,"cut":false,"hidden":false,"merged":[]}
["Pour entrer date du jour : Ctrl + ;",null,{"$f":"MID(CELL(\"nomfichier\",A1),FIND(\"]\",CELL(\"nomfichier\",A1))+1,LEN(CELL(\"nomfichier\",A1))-FIND(\"]\",CELL(\"nomfichier\",A1)))","v":"WESLEY"},null,null,"TYPE","TRACTEUR"]
[]
["CHAUFFEUR ","AUGUSTIN(GUST)","AIDE CHAUFFEUR",null,null,null,"SYLVAIN"]
["VISITE TECHNIQUE",null,"VIDANGE"]
["ASSURANCE",null,"PROCHAINE VIDANGE"]
[null,null,null,null,null,"TOTAL ",{"$f":"SUM(G8:G2008)","v":0}]
["DATE","REPARATION A EFFECTUER/ APPRO","PRESTATAIRE","KM A L'ENTRETIENT","PROCHAIN ENTRETIENT","STATUT","COUT"]

{"sheet":"NATHA","index":19,"n_rows":7,"n_cols":7,"rows_kept":7,"cut":false,"hidden":false,"merged":[]}
["Pour entrer date du jour : Ctrl + ;",null,{"$f":"MID(CELL(\"nomfichier\",A1),FIND(\"]\",CELL(\"nomfichier\",A1))+1,LEN(CELL(\"nomfichier\",A1))-FIND(\"]\",CELL(\"nomfichier\",A1)))","v":"NATHA"},null,null,"TYPE","REMORQUE"]
[]
["CHAUFFEUR ","AUGUSTIN(GUST)","AIDE CHAUFFEUR",null,null,null,"SYLVAIN"]
["VISITE TECHNIQUE",null,"VIDANGE"]
["ASSURANCE",null,"PROCHAINE VIDANGE"]
[null,null,null,null,null,"TOTAL ",{"$f":"SUM(G8:G2008)","v":0}]
["DATE","REPARATION A EFFECTUER/ APPRO","PRESTATAIRE","KM A L'ENTRETIENT","PROCHAIN ENTRETIENT","STATUT","COUT"]

{"sheet":"FRERE LUKILL","index":20,"n_rows":7,"n_cols":7,"rows_kept":7,"cut":false,"hidden":false,"merged":[]}
["Pour entrer date du jour : Ctrl + ;",null,{"$f":"MID(CELL(\"nomfichier\",A1),FIND(\"]\",CELL(\"nomfichier\",A1))+1,LEN(CELL(\"nomfichier\",A1))-FIND(\"]\",CELL(\"nomfichier\",A1)))","v":"FRERE LUKILL"},null,null,"TYPE","REMORQUE"]
[]
["CHAUFFEUR ","AUGUSTIN(GUST)","AIDE CHAUFFEUR",null,null,null,"SYLVAIN"]
["VISITE TECHNIQUE",null,"VIDANGE"]
["ASSURANCE",null,"PROCHAINE VIDANGE"]
[null,null,null,null,null,"TOTAL ",{"$f":"SUM(G8:G2008)","v":0}]
["DATE","REPARATION A EFFECTUER/ APPRO","PRESTATAIRE","KM A L'ENTRETIENT","PROCHAIN ENTRETIENT","STATUT","COUT"]

{"sheet":"KIM","index":21,"n_rows":7,"n_cols":7,"rows_kept":7,"cut":false,"hidden":false,"merged":[]}
["Pour entrer date du jour : Ctrl + ;",null,{"$f":"MID(CELL(\"nomfichier\",A1),FIND(\"]\",CELL(\"nomfichier\",A1))+1,LEN(CELL(\"nomfichier\",A1))-FIND(\"]\",CELL(\"nomfichier\",A1)))","v":"KIM"},null,null,"TYPE","TRACTEUR"]
[]
["CHAUFFEUR ","FILIANTSOA (DADAKELY)","AIDE CHAUFFEUR"]
["VISITE TECHNIQUE",null,"VIDANGE"]
["ASSURANCE",null,"PROCHAINE VIDANGE"]
[null,null,null,null,null,"TOTAL ",{"$f":"SUM(G8:G2008)","v":0}]
["DATE","REPARATION A EFFECTUER/ APPRO","PRESTATAIRE","KM A L'ENTRETIENT","PROCHAIN ENTRETIENT","STATUT","COUT"]

{"sheet":"KATANGA","index":22,"n_rows":8,"n_cols":7,"rows_kept":8,"cut":false,"hidden":false,"merged":[]}
["Pour entrer date du jour : Ctrl + ;",null,{"$f":"MID(CELL(\"nomfichier\",A1),FIND(\"]\",CELL(\"nomfichier\",A1))+1,LEN(CELL(\"nomfichier\",A1))-FIND(\"]\",CELL(\"nomfichier\",A1)))","v":"KATANGA"},null,null,"TYPE","REMORQUE"]
[]
["CHAUFFEUR ","FILIANTSOA (DADAKELY)","AIDE CHAUFFEUR"]
["VISITE TECHNIQUE",null,"VIDANGE"]
["ASSURANCE",null,"PROCHAINE VIDANGE"]
[null,null,null,null,null,"TOTAL ",{"$f":"SUM(G8:G2008)","v":0}]
["DATE","REPARATION A EFFECTUER/ APPRO","PRESTATAIRE","KM A L'ENTRETIENT","PROCHAIN ENTRETIENT","STATUT","COUT"]
["2019-10-28","feux arrières","AUTRE MECANICIEN"]

{"sheet":"MARIA","index":23,"n_rows":7,"n_cols":7,"rows_kept":7,"cut":false,"hidden":false,"merged":[]}
["Pour entrer date du jour : Ctrl + ;",null,{"$f":"MID(CELL(\"nomfichier\",A1),FIND(\"]\",CELL(\"nomfichier\",A1))+1,LEN(CELL(\"nomfichier\",A1))-FIND(\"]\",CELL(\"nomfichier\",A1)))","v":"MARIA"},null,null,"TYPE","TRACTEUR"]
[]
["CHAUFFEUR ",null,"AIDE CHAUFFEUR"]
["VISITE TECHNIQUE",null,"VIDANGE"]
["ASSURANCE",null,"PROCHAINE VIDANGE"]
[null,null,null,null,null,"TOTAL ",{"$f":"SUM(G8:G2008)","v":0}]
["DATE","REPARATION A EFFECTUER/ APPRO","PRESTATAIRE","KM A L'ENTRETIENT","PROCHAIN ENTRETIENT","STATUT","COUT"]

{"sheet":"LISTES","index":24,"n_rows":13,"n_cols":12,"rows_kept":13,"cut":false,"hidden":false,"merged":[]}
[]
["TYPE VEHICULE","CAMIONETTE","PRESTATAIRE","AUTRE","TYPE","AUTRES",null,"STATUT",0,null,"Janvier",2019]
[null,"REMORQUE",null,"AUTRE MECANICIEN",null,"REMORQUE",null,null,0.1,null,"Février",2020]
[null,"TRACTEUR",null,"CPL",null,"TRACTEUR",null,null,0.2,null,"Mars",2021]
[null,null,null,"DAVID MECA",null,null,null,null,0.3,null,"Avril",2022]
[null,null,null,"DISCOI",null,null,null,null,0.4,null,"Mai",2023]
[null,null,null,"JOVENNA",null,null,null,null,0.5,null,"Juin",2024]
[null,null,null,"QUINCAILLERIE",null,null,null,null,0.6,null,"Juillet",2025]
[null,null,null,"ROLLAND ELECTRICIEN",null,null,null,null,0.7,null,"Août",2026]
[null,null,null,"SILENT BLOCK-PARE HUILE",null,null,null,null,0.8,null,"Septembre",2027]
[null,null,null,"SOLO VULCA",null,null,null,null,0.9,null,"Octobre",2028]
[null,null,null,"TOLIER / SOUDEUR",null,null,null,null,1,null,"Novembre",2029]
[null,null,null,"TOTAL",null,null,null,null,null,null,"Décembre",2030]